bitfinex-derivatives/quotes_SOLF0:USTF0_20260316
["timestamp","ask_amount","ask_price","bid_price","bid_amount"]
[1773633491321,28.43040073,93.229,93.177,33.78]
[1773633491823,28.43040073,93.229,93.17,3.31224449]
[1773633492218,3.31224449,93.22,93.163,33.78]
[1773633492421,28.43040073,93.219,93.163,33.78]
[1773633496028,28.43040073,93.219,93.17,3.31224449]
[1773633501130,28.43040073,93.219,93.18,3.31224449]
[1773633502938,28.43040073,93.219,93.171,27.46012046]
[1773633505140,28.43040073,93.219,93.18,3.31224449]
[1773633505340,28.43040073,93.219,93.17,3.31224449]
[1773633505535,27.64450432,93.251,93.2,3.31224449]
[1773633510145,27.64450432,93.251,93.21,3.31224449]
[1773633510746,27.64450432,93.251,93.22,3.31224449]
[1773633513947,27.64450432,93.266,93.23,3.31224449]
[1773633514746,27.64450432,93.266,93.23,3.31130669]
[1773633516052,27.64450432,93.266,93.22,3.31130669]
[1773633518549,27.64450432,93.266,93.212,25.76917455]
[1773633518753,27.64450432,93.266,93.21,3.31130669]
[1773633525655,27.64450432,93.266,93.211,25.76917455]
[1773633526455,27.64450432,93.266,93.22,3.31130669]
[1773633530359,27.64450432,93.266,93.211,25.76917455]
[1773633530558,27.64450432,93.266,93.21,3.31130669]
[1773633531956,26.54765911,93.259,93.2,3.31130669]
[1773633532157,26.54765911,93.259,93.194,25.79018354]
[1773633532763,26.54765911,93.249,93.194,25.79018354]
[1773633533663,33.78,93.291,93.18,3.31130669]
[1773633533664,26.54765911,93.239,93.18,3.31130669]
[1773633533863,26.54765911,93.229,93.171,9.63710436]
[1773633534062,26.54765911,93.229,93.168,25.79018354]
[1773633534259,26.54765911,93.219,93.168,25.79018354]
[1773633536366,26.54765911,93.219,93.171,26.34286789]
[1773633540364,26.54765911,93.219,93.18,3.31130669]
[1773633542669,26.54765911,93.219,93.171,26.34286789]
[1773633543470,26.54765911,93.219,93.18,3.31130669]
[1773633543875,26.54765911,93.219,93.18,29.65417458]
[1773633544167,27.1297818,93.239,93.18,29.65417458]
[1773633551676,27.1297818,93.239,93.18,26.34286789]
[1773633552072,27.1297818,93.239,93.167,26.34286789]
[1773633552275,27.1297818,93.239,93.17,3.31130669]
[1773633552579,33.78,93.247,93.167,26.34286789]
[1773633552580,27.1297818,93.219,93.167,26.34286789]
[1773633552976,27.1297818,93.209,93.154,26.34286789]
[1773633553579,27.1297818,93.209,93.161,26.34286789]
[1773633556781,27.1297818,93.209,93.149,33.78]
[1773633557186,27.1297818,93.209,93.151,26.34286789]
[1773633557689,27.1297818,93.159,93.099,26.34286789]
[1773633558386,27.1297818,93.159,93.101,26.34286789]
[1773633562287,3.31130669,93.15,93.101,26.34286789]
[1773633562488,26.80875067,93.149,93.101,26.34286789]
[1773633562989,26.80875067,93.163,93.101,26.34286789]
[1773633563195,26.80875067,93.163,93.111,24.91659506]
[1773633564995,26.80875067,93.179,93.131,24.91659506]
[1773633569197,26.80875067,93.179,93.117,24.91659506]
[1773633570190,26.80875067,93.179,93.12,28.22790175]
[1773633574900,26.80875067,93.193,93.141,24.91659506]
[1773633575098,30.12005736,93.19,93.141,24.91659506]
[1773633575298,26.80875067,93.169,93.121,24.91659506]
[1773633577903,26.80875067,93.189,93.141,24.91659506]
[1773633581395,26.80875067,93.209,93.151,24.91659506]
[1773633582005,33.8,93.222,93.151,24.91659506]
[1773633582006,26.80875067,93.199,93.151,24.91659506]
[1773633582503,26.80875067,93.199,93.14,3.31850619]
[1773633583008,26.80875067,93.199,93.14,28.23510125]
[1773633583906,26.80875067,93.199,93.15,24.91659506]
[1773633586102,26.80875067,93.169,93.103,24.91659506]
[1773633586306,26.80875067,93.169,93.111,24.91659506]
[1773633586505,26.80875067,93.183,93.121,24.91659506]
[1773633587912,26.80875067,93.179,93.121,24.91659506]
[1773633592415,33.8,93.209,93.121,24.91659506]
[1773633592416,25.95071841,93.169,93.121,24.91659506]
[1773633594812,25.95071841,93.169,93.104,26.25753772]
[1773633595020,3.31850619,93.17,93.104,26.25753772]
[1773633595021,25.72608706,93.159,93.104,26.25753772]
[1773633596119,25.72608706,93.159,93.111,26.25753772]
[1773633597023,25.72608706,93.193,93.141,26.25753772]
[1773633597625,25.72608706,93.189,93.141,26.25753772]
[1773633601022,25.72608706,93.189,93.15,3.31850619]
[1773633601818,25.72608706,93.202,93.15,29.57604391]
[1773633602019,25.72608706,93.219,93.161,26.25753772]
[1773633602225,25.72608706,93.219,93.17,29.57604391]
[1773633602630,25.72608706,93.247,93.181,26.25753772]
[1773633602820,25.72608706,93.247,93.191,26.25753772]
[1773633603219,25.72608706,93.247,93.2,29.57604391]
[1773633603430,33.8,93.268,93.132,19.324]
[1773633603431,25.72608706,93.267,93.211,26.25753772]
[1773633604026,25.72608706,93.267,93.22,3.31850619]
[1773633604321,25.72608706,93.309,93.24,3.31850619]
[1773633604525,25.72608706,93.309,93.191,33.8]
[1773633604526,25.72608706,93.309,93.25,29.57604391]
[1773633604825,25.72608706,93.309,93.192,32.21]
[1773633604826,25.72608706,93.309,93.26,29.57604391]
[1773633605017,25.72608706,93.329,93.27,26.25753772]
[1773633605222,25.72608706,93.329,93.28,3.31850619]
[1773633605818,25.72608706,93.345,93.29,3.31850619]
[1773633606522,25.72608706,93.361,93.3,3.31850619]
[1773633606722,3.31850619,93.36,93.3,29.57604391]
[1773633606925,29.04459325,93.31,93.248,26.25753772]
[1773633607123,25.72608706,93.31,93.26,3.31850619]
[1773633607528,25.72608706,93.31,93.261,26.25753772]
[1773633607730,25.72608706,93.329,93.261,26.25753772]
[1773633607928,3.31850619,93.32,93.261,26.25753772]
[1773633608325,25.72608706,93.329,93.261,26.25753772]
[1773633608526,3.31850619,93.32,93.261,26.25753772]
[1773633608925,25.72608706,93.309,93.244,26.25753772]
[1773633609231,25.72608706,93.309,93.251,26.25753772]
[1773633609532,3.31850619,93.32,93.261,26.25753772]
[1773633609731,29.04459325,93.32,93.261,26.25753772]
[1773633610231,25.72608706,93.32,93.27,3.31850619]
[1773633610425,25.72608706,93.339,93.28,29.57604391]
[1773633610628,25.72608706,93.339,93.29,3.31850619]
[1773633610829,25.72608706,93.339,93.291,26.25753772]
[1773633611232,25.72608706,93.359,93.3,29.57604391]
[1773633611428,25.72608706,93.359,93.31,3.31850619]
[1773633611625,25.72608706,93.381,93.32,29.57604391]
[1773633611829,25.72608706,93.381,93.33,3.31850619]
[1773633612025,25.72608706,93.349,93.29,3.31850619]
[1773633612227,25.72608706,93.339,93.274,26.25753772]
[1773633612433,3.31850619,93.32,93.274,26.25753772]
[1773633612729,3.31850619,93.32,93.257,26.25753772]
[1773633612730,25.72608706,93.32,93.257,26.25753772]
[1773633612931,25.72608706,93.349,93.257,26.25753772]
[1773633613534,25.72608706,93.349,93.271,26.25753772]
[1773633613731,25.72608706,93.433,93.273,26.25753772]
[1773633614028,106.81,93.611,93.272,33.78]
[1773633614029,25.72608706,93.423,93.331,26.25753772]
[1773633614233,25.72608706,93.409,93.331,26.25753772]
[1773633614534,25.72608706,93.409,93.291,26.25753772]
[1773633614927,25.72608706,93.389,93.291,26.25753772]
[1773633617833,25.72608706,93.379,93.291,26.25753772]
[1773633618034,25.72608706,93.379,93.267,26.25753772]
[1773633618336,25.72608706,93.359,93.267,26.25753772]
[1773633620437,25.72608706,93.359,93.209,19.308]
[1773633620438,25.72608706,93.378,93.281,26.25753772]
[1773633620736,25.72608706,93.378,93.283,26.25753772]
[1773633620937,25.72608706,93.378,93.285,26.25753772]
[1773633624738,25.72608706,93.378,93.301,25.47243882]
[1773633626738,25.72608706,93.378,93.284,25.47243882]
[1773633629340,26.94409434,93.369,93.261,25.47243882]
[1773633630439,26.94409434,93.349,93.261,25.47243882]
[1773633631435,26.94409434,93.349,93.245,33.76]
[1773633631643,26.94409434,93.329,93.24,25.47243882]
[1773633638651,26.94409434,93.319,93.213,33.76]
[1773633638849,26.94409434,93.319,93.214,25.47243882]
[1773633639951,26.94409434,93.319,93.221,25.47243882]
[1773633643855,26.94409434,93.319,93.223,25.47243882]
[1773633654867,26.94409434,93.319,93.25,3.30887267]
[1773633655466,25.98886076,93.309,93.25,3.30887267]
[1773633656763,25.98886076,93.309,93.25,28.31596836]
[1773633657068,10.73,93.354,93.222,33.76]
[1773633657069,25.98886076,93.338,93.29,3.30887267]
[1773633657566,25.98886076,93.338,93.28,28.31596836]
[1773633658666,25.98886076,93.338,93.29,3.30887267]
[1773633658862,25.98886076,93.338,93.28,25.00709569]
[1773633659567,33.76,93.36,93.28,25.00709569]
[1773633659568,25.98886076,93.359,93.281,25.00709569]
[1773633661469,25.98886076,93.359,93.229,12.49109833]
[1773633661470,25.98886076,93.339,93.242,25.00709569]
[1773633661666,25.98886076,93.337,93.242,25.00709569]
[1773633661863,25.98886076,93.319,93.231,25.00709569]
[1773633662063,25.98886076,93.317,93.231,25.00709569]
[1773633666168,26.95126197,93.345,93.25,7.87405613]
[1773633666474,26.95126197,93.345,93.251,33.76]
[1773633667273,26.95126197,93.345,93.25,7.87405613]
[1773633667474,26.95126197,93.345,93.251,33.76]
[1773633667973,26.95126197,93.345,93.27,7.87405613]
[1773633668576,27.00681134,93.362,93.27,7.87405613]
[1773633669169,27.00681134,93.362,93.271,33.76]
[1773633669574,27.00681134,93.362,93.271,33.80449836]
[1773633669776,27.00681134,93.362,93.272,0.04449836]
[1773633672176,26.96754272,93.349,93.23,7.87405613]
[1773633672374,26.96754272,93.347,93.231,0.03240309]
[1773633674175,9.82608449,93.346,93.231,0.03240309]
[1773633674477,26.90718593,93.345,93.231,0.03240309]
[1773633675280,36.73327042,93.345,93.231,0.03240309]
[1773633675479,26.9153406,93.344,93.231,0.03240309]
[1773633676073,26.92639846,93.343,93.231,0.03240309]
[1773633677176,26.92639846,93.343,93.24,9.39571942]
[1773633678175,26.92639846,93.343,93.239,9.39571942]
[1773633678781,26.92639846,93.343,93.24,7.87405613]
[1773633684385,26.92639846,93.343,93.247,9.39571942]
[1773633685282,26.92639846,93.343,93.26,7.87405613]
[1773633686179,26.92639846,93.343,93.255,9.39571942]
[1773633686383,26.92639846,93.343,93.26,7.87405613]
[1773633691886,26.92639846,93.343,93.258,9.39571942]
[1773633692088,26.92639846,93.343,93.248,43.15571942]
[1773633692287,26.92639846,93.343,93.248,33.76]
[1773633692477,26.92639846,93.343,93.26,7.87405613]
[1773633694884,26.98976628,93.339,93.27,3.30765652]
[1773633695078,26.98976628,93.339,93.28,3.30765652]
[1773633695588,26.98976628,93.339,93.281,33.76]
[1773633697284,26.98976628,93.339,93.29,3.30765652]
[1773633697487,26.98976628,93.339,93.281,33.76]
[1773633699290,26.98976628,93.339,93.29,3.30712715]
[1773633703298,26.98976628,93.339,93.285,33.76]
[1773633703488,26.98976628,93.339,93.29,3.30712715]
[1773633706394,26.98976628,93.339,93.285,33.76]
[1773633708199,26.98976628,93.339,93.275,33.76]
[1773633709394,26.98976628,93.339,93.28,3.30712715]
[1773633710297,27.16138823,93.319,93.255,9.60510917]
[1773633710603,27.16204803,93.309,93.254,33.76]
[1773633710794,27.16204803,93.309,93.238,12.75596024]
[1773633710795,27.16204803,93.299,93.237,33.76]
[1773633710995,27.16204803,93.299,93.25,3.30712715]
[1773633713098,27.16204803,93.299,93.24,3.30712715]
[1773633713501,27.16204803,93.299,93.23,3.30712715]
[1773633713802,27.16204803,93.299,93.24,3.30712715]
[1773633715598,27.16204803,93.299,93.25,3.30712715]
[1773633717804,27.16204803,93.299,93.26,3.30712715]
[1773633719103,27.16204803,93.299,93.25,3.30712715]
[1773633720504,27.16204803,93.299,93.24,3.30712715]
[1773633720901,27.43747765,93.289,93.234,33.76]
[1773633721207,27.43747765,93.269,93.211,9.62339009]
[1773633721602,27.43747765,93.269,93.22,3.30712715]
[1773633722801,27.43747765,93.269,93.21,33.76]
[1773633723107,27.43747765,93.269,93.22,3.30712715]
[1773633724105,27.43747765,93.269,93.21,33.76]
[1773633724106,27.43747765,93.269,93.211,9.62339009]
[1773633724304,27.43747765,93.269,93.22,3.30712715]
[1773633724700,27.20175632,93.309,93.25,3.30712715]
[1773633724906,27.20175632,93.328,93.27,3.30712715]
[1773633725111,27.20175632,93.328,93.252,9.62339009]
[1773633725112,27.20175632,93.328,93.28,3.30712715]
[1773633727107,27.20175632,93.328,93.29,3.30712715]
[1773633727308,27.33853798,93.359,93.31,3.30712715]
[1773633728206,27.33853798,93.359,93.3,3.30712715]
[1773633728402,27.28114796,93.349,93.29,3.30712715]
[1773633729199,27.28114796,93.349,93.28,33.76]
[1773633729200,27.28114796,93.349,93.3,3.30712715]
[1773633729705,27.28114796,93.349,93.28,33.76]
[1773633729706,27.28114796,93.349,93.31,3.30712715]
[1773633730103,27.06207393,93.389,93.32,3.30712715]
[1773633730906,27.02779672,93.379,93.32,3.30712715]
[1773633731106,27.02779672,93.379,93.294,9.62339009]
[1773633731412,27.02779672,93.379,93.31,3.30712715]
[1773633731607,27.12471184,93.369,93.31,3.30712715]
[1773633735810,27.12471184,93.369,93.29,9.62339009]
[1773633735811,27.12471184,93.369,93.33,3.30712715]
[1773633736004,27.1372681,93.386,93.34,3.30712715]
[1773633736509,27.1372681,93.386,93.33,3.30712715]
[1773633737012,27.1372681,93.386,93.319,33.76]
[1773633737013,27.1372681,93.386,93.34,3.30712715]
[1773633740411,27.06513495,93.409,93.35,3.30712715]
[1773633741215,33.74,93.429,93.34,3.30712715]
[1773633741216,27.04995217,93.399,93.34,3.30712715]
[1773633744413,26.88153349,93.389,93.291,9.62339009]
[1773633744718,26.88153349,93.389,93.33,3.30712715]
[1773633745316,26.88028352,93.379,93.32,3.30712715]
[1773633746213,26.88028352,93.379,93.33,3.30712715]
[1773633746614,26.88028352,93.379,93.283,19.293]
[1773633746920,26.88028352,93.379,93.33,3.30712715]
[1773633747620,26.88028352,93.379,93.284,33.74]
[1773633747820,26.88028352,93.379,93.32,3.30712715]
[1773633748717,26.88028352,93.379,93.34,3.30712715]
[1773633749626,26.88028352,93.379,93.32,3.30712715]
[1773633753125,26.88028352,93.379,93.33,3.30712715]
[1773633753824,26.88028352,93.379,93.34,3.30712715]
[1773633754217,26.88028352,93.379,93.31,33.74]
[1773633754423,26.88028352,93.379,93.33,3.30712715]
[1773633754623,26.88028352,93.379,93.32,3.30712715]
[1773633757320,26.88028352,93.379,93.275,9.62339009]
[1773633757321,26.88028352,93.379,93.33,3.30712715]
[1773633757524,26.88028352,93.379,93.34,3.30712715]
[1773633757721,26.88028352,93.379,93.33,3.30712715]
[1773633759229,26.88028352,93.379,93.32,3.30712715]
[1773633760830,26.88028352,93.379,93.32,3.30425581]
[1773633761527,26.59191247,93.349,93.29,3.30425581]
[1773633762120,33.74,93.394,93.25,19.299]
[1773633762121,26.59115306,93.339,93.28,3.30425581]
[1773633762330,26.59115306,93.339,93.29,3.30425581]
[1773633763232,26.59115306,93.339,93.28,3.30425581]
[1773633763633,26.59115306,93.339,93.29,3.30425581]
[1773633764839,26.59115306,93.339,93.28,3.30425581]
[1773633765338,33.74,93.394,93.263,33.74]
[1773633765339,26.08289908,93.329,93.27,3.30425581]
[1773633766834,26.08289908,93.329,93.28,3.30425581]
[1773633767639,26.08289908,93.329,93.29,3.30425581]
[1773633769131,26.08289908,93.329,93.263,33.74]
[1773633769132,26.08289908,93.329,93.28,3.30425581]
[1773633770639,26.08289908,93.329,93.29,3.30425581]
[1773633771629,3.30425581,93.36,93.3,3.30425581]
[1773633773633,23.28044829,93.359,93.3,3.30425581]
[1773633775237,23.28044829,93.359,93.291,12.95587564]
[1773633775943,23.28044829,93.359,93.3,3.30425581]
[1773633777042,23.28044829,93.359,93.291,12.95587564]
[1773633777338,24.17565197,93.349,93.291,12.95587564]
[1773633777740,33.74,93.394,93.28,3.30425581]
[1773633777741,24.17565197,93.339,93.28,3.30425581]
[1773633777944,24.17565197,93.379,93.311,12.55575827]
[1773633778138,24.17565197,93.379,93.33,3.30425581]
[1773633780141,24.17565197,93.379,93.32,3.30425581]
[1773633780540,3.30425581,93.35,93.295,12.58991424]
[1773633780737,24.17565197,93.349,93.295,12.58991424]
[1773633780942,24.17565197,93.349,93.29,3.30425581]
[1773633781446,24.17565197,93.349,93.21,32.19162663]
[1773633781447,24.17565197,93.339,93.28,3.30425581]
[1773633781746,24.17565197,93.339,93.3,3.30425581]
[1773633782041,24.17565197,93.339,93.283,12.51051534]
[1773633782245,24.17565197,93.339,93.3,3.30425581]
[1773633783138,24.17565197,93.339,93.29,3.30425581]
[1773633783741,24.17565197,93.339,93.283,12.51051534]
[1773633783941,24.17565197,93.369,93.3,3.30425581]
[1773633784246,24.17565197,93.369,93.31,3.30425581]
[1773633785248,24.17565197,93.369,93.3,3.30425581]
[1773633785644,24.17565197,93.359,93.298,12.00737815]
[1773633787750,24.17565197,93.359,93.3,3.30425581]
[1773633787944,24.17565197,93.359,93.292,33.74]
[1773633787945,24.17565197,93.359,93.32,3.30425581]
[1773633789952,13.26801434,93.433,93.311,33.74]
[1773633789953,24.17565197,93.42,93.351,11.52200463]
[1773633790245,24.17565197,93.42,93.37,3.30425581]
[1773633791447,33.74,93.486,93.357,33.74]
[1773633791448,3.30425581,93.46,93.4,3.30425581]
[1773633791653,3.30425581,93.46,93.325,12.75596024]
[1773633791654,3.30425581,93.44,93.38,3.30425581]
[1773633791848,3.30425581,93.44,93.37,3.30425581]
[1773633792752,3.30425581,93.43,93.37,3.30425581]
[1773633793552,24.17565197,93.429,93.356,33.74]
[1773633793753,24.17565197,93.419,93.36,3.30425581]
[1773633794447,3.30425581,93.41,93.351,33.74]
[1773633794652,24.17565197,93.409,93.351,33.74]
[1773633795244,24.17565197,93.409,93.335,24.0491152]
[1773633796745,24.17565197,93.409,93.32,7.8633984]
[1773633796746,24.17565197,93.409,93.337,24.0491152]
[1773633797348,24.17565197,93.409,93.341,24.0491152]
[1773633799154,24.17565197,93.459,93.341,24.0491152]
[1773633800154,7.8633984,93.45,93.341,24.0491152]
[1773633800359,24.17565197,93.449,93.341,24.0491152]
[1773633802759,24.17565197,93.449,93.342,56.70557354]
[1773633802961,22.9756099,93.429,93.343,22.98557354]
[1773633804456,22.9756099,93.429,93.342,33.72]
[1773633806367,22.9756099,93.429,93.343,33.72]
[1773633808266,22.9756099,93.429,93.335,33.72]
[1773633809167,22.9756099,93.409,93.316,22.98557354]
[1773633810977,22.9756099,93.409,93.308,33.72]
[1773633812771,22.9756099,93.409,93.308,56.70557354]
[1773633812968,22.9756099,93.409,93.309,22.98557354]
[1773633816976,26.28082113,93.36,93.31,22.98557354]
[1773633817371,26.28082113,93.36,93.307,33.74]
[1773633818374,22.9756099,93.339,93.28,22.98557354]
[1773633818670,22.9756099,93.339,93.28,26.29078477]
[1773633819071,22.9756099,93.339,93.29,3.30521123]
[1773633820182,22.9756099,93.339,93.28,22.98557354]
[1773633820367,22.9756099,93.339,93.29,3.30521123]
[1773633820878,22.9756099,93.339,93.28,22.98557354]
[1773633823879,22.9756099,93.339,93.282,22.98557354]
[1773633827176,22.9756099,93.339,93.261,22.98557354]
[1773633829180,22.9756099,93.392,93.321,22.98557354]
[1773633829377,22.9756099,93.392,93.323,22.98557354]
[1773633830188,22.9756099,93.392,93.324,33.74]
[1773633830879,22.9756099,93.392,93.323,22.98557354]
[1773633839685,33.74,93.418,93.323,22.98557354]
[1773633839885,22.88924416,93.417,93.323,22.98557354]
[1773633840792,22.88924416,93.409,93.35,3.30273015]
[1773633841291,22.88924416,93.409,93.321,33.74]
[1773633841292,22.88924416,93.425,93.39,3.30273015]
[1773633841489,22.88924416,93.425,93.38,3.30273015]
[1773633842690,22.88924416,93.425,93.375,33.74]
[1773633843391,22.88924416,93.425,93.355,23.61276836]
[1773633843692,33.74,93.473,93.354,33.74]
[1773633843693,22.88924416,93.409,93.354,33.74]
[1773633843892,22.88924416,93.409,93.35,37.04273015]
[1773633844891,22.88924416,93.409,93.35,33.74]
[1773633846188,22.88924416,93.409,93.351,23.61276836]
[1773633851196,22.88924416,93.409,93.352,23.61276836]
[1773633851886,22.88924416,93.426,93.352,23.61276836]
[1773633852087,22.88924416,93.426,93.361,23.61276836]
[1773633852288,22.88924416,93.426,93.363,23.61276836]
[1773633853497,22.88924416,93.426,93.362,33.72]
[1773633854195,22.88924416,93.426,93.363,23.61276836]
[1773633854400,106.774,93.642,93.363,23.61276836]
[1773633854401,22.88924416,93.445,93.363,23.61276836]
[1773633856894,22.88924416,93.445,93.364,33.72]
[1773633857099,22.88924416,93.445,93.365,23.61276836]
[1773633858107,22.88924416,93.445,93.366,33.72]
[1773633858897,22.88924416,93.445,93.367,23.61276836]
[1773633859107,22.88924416,93.479,93.381,23.61276836]
[1773633864012,21.76364873,93.477,93.358,22.84464211]
[1773633864312,21.76364873,93.459,93.36,22.84464211]
[1773633866508,21.76364873,93.459,93.371,22.84464211]
[1773633866913,21.76364873,93.459,93.4,3.29897165]
[1773633867212,21.76364873,93.459,93.41,3.29897165]
[1773633867612,21.76364873,93.459,93.4,3.29897165]
[1773633867813,21.76364873,93.459,93.39,26.14361376]
[1773633868016,21.76364873,93.449,93.374,22.84464211]
[1773633868312,21.76364873,93.449,93.4,3.29897165]
[1773633868813,21.76364873,93.449,93.391,22.84464211]
[1773633873217,21.76364873,93.484,93.391,22.84464211]
[1773633881526,21.76364873,93.484,93.411,22.84464211]
[1773633881923,21.76364873,93.521,93.451,22.84464211]
[1773633882624,21.76364873,93.519,93.432,22.84464211]
[1773633883425,21.76364873,93.517,93.432,22.84464211]
[1773633884728,21.76364873,93.499,93.399,22.84464211]
[1773633884926,7.84951209,93.5,93.399,22.84464211]
[1773633884927,21.76364873,93.497,93.399,22.84464211]
[1773633885327,21.76364873,93.459,93.379,22.84464211]
[1773633890733,21.76364873,93.439,93.38,3.30073744]
[1773633892632,21.0324953,93.429,93.37,3.30073744]
[1773633893836,21.0324953,93.429,93.361,33.72]
[1773633894534,21.0324953,93.429,93.324,12.75596024]
[1773633894535,21.1588386,93.409,93.35,23.5106654]
[1773633894933,21.1588386,93.409,93.36,3.30073744]
[1773633895133,21.1588386,93.429,93.38,20.20992796]
[1773633895330,21.1588386,93.429,93.38,23.5106654]
[1773633895533,21.1588386,93.445,93.39,3.30073744]
[1773633895734,21.1588386,93.445,93.38,20.20992796]
[1773633895936,21.1588386,93.445,93.38,23.5106654]
[1773633896536,21.1588386,93.445,93.39,3.30073744]
[1773633898039,21.1588386,93.445,93.38,20.20992796]
[1773633898232,21.1588386,93.445,93.39,3.30073744]
[1773633899039,21.1588386,93.445,93.352,33.72]
[1773633899235,21.1588386,93.445,93.38,3.30073744]
[1773633899434,33.72,93.468,93.37,3.30073744]
[1773633899435,21.1588386,93.439,93.37,3.30073744]
[1773633899637,21.1588386,93.429,93.37,3.30073744]
[1773633900039,21.1588386,93.429,93.36,3.30073744]
[1773633900240,21.1588386,93.419,93.36,3.30073744]
[1773633900434,3.30073744,93.41,93.35,3.30073744]
[1773633900634,21.1588386,93.409,93.34,6.69008066]
[1773633901144,21.1588386,93.409,93.34,3.38934322]
[1773633901333,21.1588386,93.409,93.35,3.30073744]
[1773633902237,21.1588386,93.399,93.34,3.38934322]
[1773633902538,21.1588386,93.399,93.34,6.69008066]
[1773633903638,21.1588386,93.419,93.351,3.44816812]
[1773633903838,21.1588386,93.419,93.36,3.30073744]
[1773633904141,21.1588386,93.419,93.37,3.30073744]
[1773633904643,21.1588386,93.419,93.36,3.30073744]
[1773633905139,21.1588386,93.419,93.37,3.30073744]
[1773633905942,21.1588386,93.419,93.38,3.30073744]
[1773633906344,21.1588386,93.435,93.39,3.30073744]
[1773633906843,21.1588386,93.435,93.378,3.29766458]
[1773633908044,21.1588386,93.435,93.361,3.06419667]
[1773633914747,33.72,93.448,93.361,3.06419667]
[1773633915148,9.96206441,93.489,93.361,3.06419667]
[1773633915449,37.24821955,93.499,93.42,7.85801095]
[1773633915651,37.24821955,93.499,93.41,7.85801095]
[1773633916649,37.24821955,93.499,93.43,7.85801095]
[1773633916853,36.64117755,93.558,93.43,7.85801095]
[1773633917247,36.64117755,93.556,93.43,7.85801095]
[1773633917445,36.64117755,93.556,93.45,7.85801095]
[1773633919750,33.13630425,93.524,93.341,19.05454177]
[1773633919947,33.13630425,93.499,93.38,7.85801095]
[1773633920150,33.13630425,93.498,93.38,7.85801095]
[1773633926355,33.39538874,93.489,93.366,33.7]
[1773633926660,33.39538874,93.469,93.36,7.85801095]
[1773633927159,33.39538874,93.469,93.355,33.7]
[1773633927561,33.37232254,93.449,93.34,7.85801095]
[1773633933565,33.72,93.448,93.34,7.85801095]
[1773633933759,33.3848084,93.447,93.34,7.85801095]
[1773633944382,33.3848084,93.447,93.36,7.85801095]
[1773633944780,33.3848084,93.447,93.39,3.29909305]
[1773633946283,33.032848,93.439,93.38,3.29909305]
[1773633946782,33.032848,93.439,93.36,7.85647062]
[1773633949284,33.032848,93.439,93.361,33.72]
[1773633951889,33.09637184,93.466,93.38,7.85647062]
[1773633952088,33.09637184,93.466,93.381,33.72]
[1773633952490,33.09637184,93.466,93.38,7.85647062]
[1773633952791,33.09637184,93.466,93.381,33.72]
[1773633955086,33.09637184,93.466,93.375,33.72]
[1773633955394,33.09637184,93.466,93.374,33.72]
[1773633956087,33.09637184,93.466,93.38,7.85647062]
[1773633956794,33.09637184,93.466,93.374,33.72]
[1773633957495,33.09637184,93.466,93.349,19.279]
[1773633957693,33.09637184,93.466,93.35,41.57647062]
[1773633958193,33.09637184,93.466,93.37,7.85647062]
[1773633958594,33.09637184,93.466,93.371,33.72]
[1773633958985,33.09637184,93.466,93.37,7.85647062]
[1773633959192,33.09637184,93.466,93.349,19.279]
[1773633959193,33.09637184,93.466,93.39,7.85647062]
[1773633959390,33.09637184,93.466,93.391,33.72]
[1773633959694,33.09637184,93.466,93.397,9.56322742]
[1773633959890,33.09637184,93.466,93.39,7.85647062]
[1773633960095,33.09637184,93.466,93.391,33.72]
[1773633960498,32.56489804,93.519,93.401,9.56322742]
[1773633960798,32.56489804,93.519,93.403,9.56322742]
[1773633960992,32.56489804,93.519,93.41,7.85647062]
[1773633961897,32.56489804,93.519,93.414,9.56322742]
[1773633962299,32.56489804,93.519,93.415,9.56322742]
[1773633962593,32.47215677,93.517,93.416,33.72]
[1773633963299,32.47215677,93.517,93.417,9.56322742]
[1773633963699,32.49824673,93.499,93.416,33.72]
[1773633964402,32.49824673,93.499,93.42,7.85647062]
[1773633965411,32.49824673,93.499,93.421,33.7]
[1773633965801,32.49824673,93.499,93.421,43.26322742]
[1773633966206,32.49824673,93.499,93.421,33.7]
[1773633968305,32.49824673,93.499,93.42,33.7]
[1773633968805,33.7,93.519,93.42,33.7]
[1773633968806,32.47807232,93.489,93.42,36.99697819]
[1773633968999,32.47807232,93.489,93.44,3.29697819]
[1773633969607,32.47807232,93.506,93.45,3.29697819]
[1773633970400,32.47807232,93.506,93.46,3.29697819]
[1773633971010,32.47807232,93.506,93.441,33.7]
[1773633971407,32.47807232,93.506,93.45,3.29697819]
[1773633972012,32.47807232,93.506,93.46,3.29697819]
[1773633972213,32.47807232,93.506,93.39,19.05454177]
[1773633972214,3.29697819,93.53,93.47,3.29697819]
[1773633972408,32.4489063,93.509,93.456,33.7]
[1773633972615,32.4489063,93.509,93.455,33.7]
[1773633974612,32.38031109,93.489,93.424,33.7]
[1773633974805,32.38031109,93.489,93.422,33.7]
[1773633975210,32.356554,93.479,93.422,33.7]
[1773633977720,32.356554,93.479,93.375,32.12]